[Event "16th Spilimbergo Open 2018"]
[Site "Spilimbergo"]
[Date "2018.08.12"]
[Round "4.10"]
[White "Basso, Pier Luigi"]
[Black "Loiacono, Leonardo"]
[Result "1-0"]
[ECO "D41"]
[WhiteElo "2494"]
[BlackElo "2303"]
[Annotator "ChessBase"]
[PlyCount "71"]
[EventDate "2018.08.10"]
[EventType "swiss"]
[EventCountry "ITA"]
[SourceTitle "playchess.com"]
[Source "ChessBase"]
[SourceQuality "1"]
[TimeControl "5400+30"]

1. d4 {[%emt 0:04:30]} Nf6 {[%emt 0:00:30]} 2. c4 {[%emt 0:00:30]} e6 {[%emt 0:00:00]} 3. Nf3 {[%emt 0:00:30]} d5 {[%emt 0:00:00]} 4. Nc3 {[%emt 0:00:00]} c5 {[%emt 0:00:00]} 5. cxd5 {[%emt 0:00:00]} Nxd5 {[%emt 0:00:00]} 6. e4 {[%emt 0:00:00]} Nxc3 {[%emt 0:00:00]} 7. bxc3 {[%emt 0:00:00]} cxd4 {[%emt 0:00:00]} 8. cxd4 {[%emt 0:00:00]} Bb4+ {[%emt 0:00:30]} 9. Bd2 {[%emt 0:00:00]} Bxd2+ {[%emt 0:00:00]} 10. Qxd2 {[%emt 0:00:30]} O-O {[%emt 0:00:00]} 11. Bc4 {[%emt 0:00:30]} Nd7 {[%emt 0:01:30]} 12. O-O {[%emt 0:00:30]} b6 {[%emt 0:00:30]} 13. Rad1 {[%emt 0:00:00]} Bb7 {[%emt 0:00:30]} 14. Rfe1 {[%emt 0:00:00]} Rc8 {[%emt 0:01:30]} 15. Bb3 {[%emt 0:01:30]} Re8 {[%emt 0:00:30]} 16. h3 {[%emt 0:00:30]} h6 {[%emt 0:06:30]} 17. Re3 {[%emt 0:00:30]} Nf6 {[%emt 0:03:30]} 18. Qe2 {[%emt 0:00:30]} Rc7 {[%emt 0:27:30]} 19. Ne5 {[%emt 0:01:30]} Qa8 {[%emt 0:04:30]} 20. f3 {[%emt 0:08:30]} Rd8 {[%emt 0:01:30]} 21. Qe1 {[%emt 0:05:30]} Nd7 {[%emt 0:06:30]} 22. Ng4 {[%emt 0:16:30]} Kh7 {[%emt 0:04:30]} 23. d5 {[%emt 0:01:30]} Nf8 {[%emt 0:09:30]} 24. d6 {[%emt 0:00:30]} Rc5 {[%emt 0:00:30]} 25. e5 {[%emt 0:01:30]} Ng6 {[%emt 0:00:30]} 26. Nf2 {[%emt 0:02:30]} Nf4 {[%emt 0:04:30]} 27. Nd3 {[%emt 0:00:30]} Nxd3 {[%emt 0:00:30]} 28. Rdxd3 {[%emt 0:00:30]} Bd5 {[%emt 0:01:30]} 29. Kh2 {[%emt 0:02:30]} Qc6 {[%emt 0:00:30]} 30. Qh4 {[%emt 0:01:30]} Rd7 {[%emt 0:02:30]} 31. Bxd5 {[%emt 0:00:00]} exd5 {[%emt 0:00:30]} 32. f4 {[%emt 0:02:00]} Rc1 {[%emt 0:03:30]} 33. Re1 {[%emt 0:01:30]} Rc3 {[%emt 0:00:30]} 34. Qg3 {[%emt 0:01:30]} Rc2 {[%emt 0:01:30]} 35. a3 {[%emt 0:01:30]} Rd8 {[%emt 0:01:57]} 36. f5 {[%emt 0:00:30]} 1-0

[Event "16th Spilimbergo Open 2018"]
[Site "Spilimbergo"]
[Date "2018.08.12"]
[Round "4.11"]
[White "Morozov, Nichita"]
[Black "Mufic, Goran"]
[Result "1-0"]
[ECO "E08"]
[WhiteElo "2438"]
[BlackElo "2299"]
[Annotator "NA"]
[PlyCount "69"]
[EventDate "2018.08.10"]
[EventType "swiss"]
[EventCountry "ITA"]
[SourceTitle "playchess.com"]
[Source "ChessBase"]
[SourceQuality "1"]
[TimeControl "5400+30"]

1. Nf3 {[%emt 0:02:30]} d5 {[%emt 0:03:30]} 2. c4 {[%emt 0:05:30]} e6 {[%emt 0:00:30]} 3. g3 {[%emt 0:00:00]} Nf6 {[%emt 0:00:30]} 4. Bg2 {[%emt 0:00:00]} c6 {[%emt 0:00:30]} 5. Qc2 {[%emt 0:00:30]} Nbd7 {[%emt 0:00:30]} 6. d4 {[%emt 0:02:30]} Be7 {[%emt 0:02:30]} 7. O-O {[%emt 0:00:30]} O-O {[%emt 0:00:30]} 8. Rd1 {[%emt 0:00:30]} b6 {[%emt 0:01:30]} 9. b3 {[%emt 0:00:30]} Bb7 {[%emt 0:00:30]} 10. Nc3 {[%emt 0:00:30]} a5 {[%emt 0:04:30]} 11. e4 {[%emt 0:07:30]} a4 {[%emt 0:05:30]} 12. bxa4 {[%emt 0:07:30]} Nxe4 {[%emt 0:00:30]} 13. Nxe4 {[%emt 0:09:30]} dxe4 {[%emt 0:00:30]} 14. Qxe4 {[%emt 0:01:30]} Rxa4 {[%emt 0:00:30]} 15. Qc2 {[%emt 0:00:00]} Qa8 {[%emt 0:01:30]} 16. c5 {[%emt 0:08:00]} Rd8 {[%emt 0:13:30]} 17. cxb6 {[%emt 0:14:30]} Ra6 {[%emt 0:07:30]} 18. Bg5 {[%emt 0:03:30]} Bxg5 {[%emt 0:00:30]} 19. Nxg5 {[%emt 0:00:00]} Nf6 {[%emt 0:02:30]} 20. Ne4 {[%emt 0:02:00]} Nxe4 {[%emt 0:05:30]} 21. Bxe4 {[%emt 0:00:30]} Rxb6 {[%emt 0:12:30]} 22. Bxh7+ {[%emt 0:00:30]} Kh8 {[%emt 0:00:00]} 23. Be4 {[%emt 0:01:30]} Rb4 {[%emt 0:00:00]} 24. Qc5 {[%emt 0:01:30]} Rb5 {[%emt 0:02:30]} 25. Qe7 {[%emt 0:00:30]} Kg8 {[%emt 0:03:30]} 26. a4 {[%emt 0:02:30]} Ra5 {[%emt 0:08:30]} 27. Rdb1 {[%emt 0:00:30]} Ba6 {[%emt 0:00:30]} 28. Qc7 {[%emt 0:05:30]} Bb5 {[%emt 0:03:40]} 29. Rb4 {[%emt 0:06:27]} g6 {[%emt 0:07:05]} 30. h4 {[%emt 0:01:20]} Ra7 {[%emt 0:04:02]} 31. Qe5 {[%emt 0:01:23]} Bxa4 {[%emt 0:02:05]} 32. h5 {[%emt 0:01:10]} Bb5 {[%emt 0:01:29]} 33. Rxa7 {[%emt 0:04:49]} Qxa7 {[%emt 0:00:01]} 34. Qf6 {[%emt 0:00:06]} Qa1+ {[%emt 0:05:03]} 35. Kh2 {[%emt 0:00:08]} 1-0

[Event "16th Spilimbergo Open 2018"]
[Site "Spilimbergo"]
[Date "2018.08.12"]
[Round "4.12"]
[White "Di Benedetto, Desiree"]
[Black "Altini, Nicola"]
[Result "1/2-1/2"]
[ECO "D02"]
[WhiteElo "2295"]
[BlackElo "2425"]
[Annotator "NA"]
[PlyCount "107"]
[EventDate "2018.08.10"]
[EventType "swiss"]
[EventCountry "ITA"]
[SourceTitle "playchess.com"]
[Source "ChessBase"]
[SourceQuality "1"]
[TimeControl "5400+30"]

1. d4 {[%emt 0:03:30]} d5 {[%emt 0:00:30]} 2. Bf4 {[%emt 0:00:30]} Nf6 {[%emt 0:00:30]} 3. e3 {[%emt 0:00:00]} g6 {[%emt 0:00:00]} 4. Nf3 {[%emt 0:02:00]} Bg7 {[%emt 0:00:00]} 5. Be2 {[%emt 0:02:30]} O-O {[%emt 0:00:30]} 6. O-O {[%emt 0:01:30]} c5 {[%emt 0:00:30]} 7. c3 {[%emt 0:01:30]} Nc6 {[%emt 0:01:30]} 8. Ne5 {[%emt 0:03:30]} Qb6 {[%emt 0:01:30]} 9. Qb3 {[%emt 0:03:30]} c4 {[%emt 0:02:30]} 10. Qxb6 {[%emt 0:11:30]} axb6 {[%emt 0:00:30]} 11. Nd2 {[%emt 0:01:30]} b5 {[%emt 0:00:30]} 12. a3 {[%emt 0:02:30]} h6 {[%emt 0:06:30]} 13. h3 {[%emt 0:07:30]} g5 {[%emt 0:05:30]} 14. Bh2 {[%emt 0:02:30]} Bf5 {[%emt 0:01:30]} 15. g4 {[%emt 0:04:30]} Bh7 {[%emt 0:10:30]} 16. f4 {[%emt 0:04:30]} Ne4 {[%emt 0:14:30]} 17. Nxe4 {[%emt 0:02:30]} Bxe4 {[%emt 0:00:30]} 18. Nd7 {[%emt 0:02:30]} Rfe8 {[%emt 0:05:30]} 19. Nc5 {[%emt 0:03:30]} e6 {[%emt 0:00:30]} 20. Nxe4 {[%emt 0:08:30]} dxe4 {[%emt 0:00:00]} 21. fxg5 {[%emt 0:02:30]} hxg5 {[%emt 0:00:00]} 22. a4 {[%emt 0:06:30]} Rxa4 {[%emt 0:04:30]} 23. Rxa4 {[%emt 0:00:30]} bxa4 {[%emt 0:01:30]} 24. Bxc4 {[%emt 0:00:00]} Ne7 {[%emt 0:00:00]} 25. Bb5 {[%emt 0:02:00]} Ra8 {[%emt 0:01:00]} 26. c4 {[%emt 0:09:37]} f5 {[%emt 0:11:30]} 27. Bd6 {[%emt 0:04:26]} Nc8 {[%emt 0:00:00]} 28. Bc5 {[%emt 0:02:02]} b6 {[%emt 0:11:00]} 29. Ba3 {[%emt 0:00:09]} f4 {[%emt 0:00:30]} 30. exf4 {[%emt 0:02:22]} Bxd4+ {[%emt 0:00:30]} 31. Kg2 {[%emt 0:00:06]} Bc5 {[%emt 0:08:34]} 32. Bd7 {[%emt 0:01:33]} gxf4 {[%emt 0:02:34]} 33. Bxe6+ {[%emt 0:00:31]} Kg7 {[%emt 0:00:05]} 34. Bd5 {[%emt 0:04:02]} f3+ {[%emt 0:01:57]} 35. Kg3 {[%emt 0:00:19]} Ra5 {[%emt 0:02:09]} 36. Bxe4 {[%emt 0:00:10]} f2 {[%emt 0:00:05]} 37. Bxc5 {[%emt 0:00:24]} Rxc5 {[%emt 0:00:02]} 38. Bd3 {[%emt 0:01:01]} Nd6 {[%emt 0:00:30]} 39. Rxf2 {[%emt 0:00:28]} Nxc4 {[%emt 0:00:03]} 40. Bxc4 {[%emt 0:00:22]} Rxc4 {[%emt 0:00:04]} 41. h4 {[%emt 0:00:31]} b5 {[%emt 0:01:03]} 42. h5 {[%emt 0:00:29]} b4 {[%emt 0:00:36]} 43. Kh4 {[%emt 0:00:53]} a3 {[%emt 0:00:07]} 44. bxa3 {[%emt 0:00:05]} bxa3 {[%emt 0:00:04]} 45. Rd2 {[%emt 0:00:40]} Ra4 {[%emt 0:01:11]} 46. Rd7+ {[%emt 0:00:31]} Kg8 {[%emt 0:00:22]} 47. Rd8+ {[%emt 0:00:28]} Kf7 {[%emt 0:00:30]} 48. Rd7+ {[%emt 0:00:34]} Ke6 {[%emt 0:00:33]} 49. Rd1 {[%emt 0:00:15]} a2 {[%emt 0:00:03]} 50. Ra1 {[%emt 0:00:11]} Kf6 {[%emt 0:00:05]} 51. Rf1+ {[%emt 0:00:57]} Kg7 {[%emt 0:00:04]} 52. Ra1 {[%emt 0:00:16]} Kh6 {[%emt 0:00:07]} 53. Kg3 {[%emt 0:00:34]} Kg5 {[%emt 0:00:04]} 54. Kf3 {[%emt 0:00:29]} 1/2-1/2

[Event "16th Spilimbergo Open 2018"]
[Site "Spilimbergo"]
[Date "2018.08.12"]
[Round "4.13"]
[White "Collutiis, Duilio"]
[Black "Micottis, Dorian"]
[Result "1-0"]
[ECO "B13"]
[WhiteElo "2415"]
[BlackElo "2295"]
[Annotator "NA"]
[PlyCount "81"]
[EventDate "2018.08.10"]
[EventType "swiss"]
[EventCountry "ITA"]
[SourceTitle "playchess.com"]
[Source "ChessBase"]
[SourceQuality "1"]
[TimeControl "5400+30"]

1. e4 {[%emt 0:00:30]} c6 {[%emt 0:00:30]} 2. d4 {[%emt 0:00:30]} d5 {[%emt 0:00:30]} 3. exd5 {[%emt 0:06:30]} cxd5 {[%emt 0:00:30]} 4. Bd3 {[%emt 0:01:30]} Nc6 {[%emt 0:00:00]} 5. c3 {[%emt 0:00:00]} Qc7 {[%emt 0:00:00]} 6. h3 {[%emt 0:00:00]} Nf6 {[%emt 0:09:30]} 7. Nf3 {[%emt 0:02:30]} g6 {[%emt 0:00:30]} 8. Qb3 {[%emt 0:22:30]} Bg7 {[%emt 0:18:30]} 9. Bg5 {[%emt 0:04:30]} O-O {[%emt 0:08:30]} 10. O-O {[%emt 0:00:30]} Rd8 {[%emt 0:02:30]} 11. Qc2 {[%emt 0:08:30]} Be6 {[%emt 0:11:30]} 12. Nbd2 {[%emt 0:01:30]} Rac8 {[%emt 0:00:30]} 13. a3 {[%emt 0:02:30]} Qd7 {[%emt 0:05:30]} 14. Rfe1 {[%emt 0:14:30]} Bf5 {[%emt 0:00:30]} 15. Ne5 {[%emt 0:02:30]} Nxe5 {[%emt 0:10:30]} 16. dxe5 {[%emt 0:00:30]} Ne8 {[%emt 0:02:30]} 17. Bxf5 {[%emt 0:00:30]} gxf5 {[%emt 0:00:30]} 18. Nf3 {[%emt 0:01:30]} h6 {[%emt 0:06:33]} 19. Bh4 {[%emt 0:08:30]} d4 {[%emt 0:14:15]} 20. Rad1 {[%emt 0:00:30]} d3 {[%emt 0:00:11]} 21. Qb1 {[%emt 0:03:29]} Rc5 {[%emt 0:03:51]} 22. Re3 {[%emt 0:01:31]} Rd5 {[%emt 0:01:30]} 23. c4 {[%emt 0:02:49]} f4 {[%emt 0:00:03]} 24. cxd5 {[%emt 0:01:54]} fxe3 {[%emt 0:00:02]} 25. Qxd3 {[%emt 0:00:07]} exf2+ {[%emt 0:00:58]} 26. Kxf2 {[%emt 0:00:08]} Rc8 {[%emt 0:00:53]} 27. Kg1 {[%emt 0:00:52]} b6 {[%emt 0:01:49]} 28. Kh1 {[%emt 0:00:22]} Kf8 {[%emt 0:00:36]} 29. Qe4 {[%emt 0:06:51]} b5 {[%emt 0:00:35]} 30. Nd4 {[%emt 0:00:18]} Rc5 {[%emt 0:00:41]} 31. Nf5 {[%emt 0:00:33]} Rc4 {[%emt 0:00:24]} 32. Bxe7+ {[%emt 0:02:38]} Kg8 {[%emt 0:00:03]} 33. e6 {[%emt 0:00:08]} fxe6 {[%emt 0:00:59]} 34. Qxe6+ {[%emt 0:00:13]} Qxe6 {[%emt 0:00:16]} 35. dxe6 {[%emt 0:00:03]} Be5 {[%emt 0:00:47]} 36. g4 {[%emt 0:01:47]} Rc8 {[%emt 0:00:33]} 37. Rd7 {[%emt 0:00:38]} Nf6 {[%emt 0:00:30]} 38. Nxh6+ {[%emt 0:00:17]} Kg7 {[%emt 0:00:27]} 39. Nf5+ {[%emt 0:01:04]} Kg6 {[%emt 0:00:06]} 40. Bxf6 {[%emt 0:00:46]} Kxf6 {[%emt 0:00:26]} 41. e7 {[%emt 0:00:20]} 1-0

[Event "16th Spilimbergo Open 2018"]
[Site "Spilimbergo"]
[Date "2018.08.12"]
[Round "4.14"]
[White "Di Benedetto, Edoardo"]
[Black "Krishna C R G"]
[Result "0-1"]
[ECO "C41"]
[WhiteElo "2294"]
[BlackElo "2402"]
[Annotator "NA"]
[PlyCount "70"]
[EventDate "2018.08.10"]
[EventType "swiss"]
[EventCountry "ITA"]
[SourceTitle "playchess.com"]
[Source "ChessBase"]
[SourceQuality "1"]
[TimeControl "5400+30"]

1. e4 {[%emt 0:01:30]} d6 {[%emt 0:03:30]} 2. d4 {[%emt 0:00:30]} Nf6 {[%emt 0:00:30]} 3. Nc3 {[%emt 0:00:00]} Nbd7 {[%emt 0:00:00]} 4. Nf3 {[%emt 0:02:00]} e5 {[%emt 0:00:00]} 5. Be2 {[%emt 0:01:30]} Be7 {[%emt 0:00:30]} 6. O-O {[%emt 0:00:30]} c6 {[%emt 0:00:30]} 7. h3 {[%emt 0:01:30]} h6 {[%emt 0:01:30]} 8. Nh4 {[%emt 0:01:30]} O-O {[%emt 0:09:30]} 9. Nf5 {[%emt 0:00:30]} Re8 {[%emt 0:00:00]} 10. Nxe7+ {[%emt 0:03:30]} Qxe7 {[%emt 0:00:00]} 11. d5 {[%emt 0:06:30]} c5 {[%emt 0:01:30]} 12. a4 {[%emt 0:00:30]} Nf8 {[%emt 0:00:30]} 13. Be3 {[%emt 0:00:30]} Bd7 {[%emt 0:05:30]} 14. a5 {[%emt 0:00:30]} Ng6 {[%emt 0:02:30]} 15. Qd2 {[%emt 0:00:30]} Nh7 {[%emt 0:00:30]} 16. b4 {[%emt 0:10:30]} cxb4 {[%emt 0:24:30]} 17. Nb5 {[%emt 0:00:00]} Nf4 {[%emt 0:01:30]} 18. Bxf4 {[%emt 0:10:00]} exf4 {[%emt 0:00:30]} 19. Nc7 {[%emt 0:02:30]} Bxh3 {[%emt 0:01:30]} 20. Nxa8 {[%emt 0:04:30]} Bxg2 {[%emt 0:04:30]} 21. Kxg2 {[%emt 0:00:30]} Qg5+ {[%emt 0:00:30]} 22. Kh3 {[%emt 0:00:00]} Qf6 {[%emt 0:00:00]} 23. Qd3 {[%emt 0:44:58]} Rxe4 {[%emt 0:17:00]} 24. Rg1 {[%emt 0:04:11]} Rd4 {[%emt 0:05:30]} 25. Qf3 {[%emt 0:01:12]} Ng5+ {[%emt 0:00:30]} 26. Rxg5 {[%emt 0:00:04]} hxg5 {[%emt 0:00:00]} 27. Rd1 {[%emt 0:01:13]} Rxd1 {[%emt 0:01:00]} 28. Bxd1 {[%emt 0:00:06]} Qd8 {[%emt 0:00:00]} 29. Qe4 {[%emt 0:02:04]} Qxa8 {[%emt 0:00:00]} 30. Qxb4 {[%emt 0:00:15]} Qc8+ {[%emt 0:00:30]} 31. Kg2 {[%emt 0:00:16]} Qc7 {[%emt 0:01:30]} 32. Qa4 {[%emt 0:01:06]} g6 {[%emt 0:00:33]} 33. a6 {[%emt 0:00:49]} bxa6 {[%emt 0:00:27]} 34. Qxa6 {[%emt 0:00:17]} f5 {[%emt 0:02:58]} 35. c4 {[%emt 0:00:24]} g4 {[%emt 0:04:17]} 0-1

[Event "16th Spilimbergo Open 2018"]
[Site "Spilimbergo"]
[Date "2018.08.12"]
[Round "4.15"]
[White "Paltrinieri, Nicholas"]
[Black "Alonso Garcia, Rene Marcial"]
[Result "0-1"]
[ECO "A48"]
[WhiteElo "2288"]
[BlackElo "2344"]
[Annotator "NA"]
[PlyCount "100"]
[EventDate "2018.08.10"]
[EventType "swiss"]
[EventCountry "ITA"]
[SourceTitle "playchess.com"]
[Source "ChessBase"]
[SourceQuality "1"]
[TimeControl "5400+30"]

1. d4 {[%emt 0:00:30]} d6 {[%emt 0:00:30]} 2. Bf4 {[%emt 0:02:30]} g6 {[%emt 0:00:30]} 3. h3 {[%emt 0:00:30]} Bg7 {[%emt 0:00:30]} 4. Nf3 {[%emt 0:00:30]} Nf6 {[%emt 0:00:00]} 5. e3 {[%emt 0:00:30]} O-O {[%emt 0:00:00]} 6. Be2 {[%emt 0:00:00]} b6 {[%emt 0:00:00]} 7. O-O {[%emt 0:00:00]} Bb7 {[%emt 0:00:00]} 8. c4 {[%emt 0:00:30]} c5 {[%emt 0:01:30]} 9. Nc3 {[%emt 0:02:30]} cxd4 {[%emt 0:00:30]} 10. exd4 {[%emt 0:00:00]} d5 {[%emt 0:00:30]} 11. Rc1 {[%emt 0:04:00]} dxc4 {[%emt 0:03:30]} 12. Bxc4 {[%emt 0:06:30]} Nc6 {[%emt 0:01:30]} 13. Be5 {[%emt 0:12:30]} Rc8 {[%emt 0:05:30]} 14. b3 {[%emt 0:15:30]} Bh6 {[%emt 0:04:30]} 15. Rc2 {[%emt 0:02:30]} Nb4 {[%emt 0:03:30]} 16. Rb2 {[%emt 0:02:30]} a6 {[%emt 0:00:30]} 17. Bxf6 {[%emt 0:07:30]} exf6 {[%emt 0:01:30]} 18. a3 {[%emt 0:00:00]} b5 {[%emt 0:16:30]} 19. axb4 {[%emt 0:03:00]} bxc4 {[%emt 0:00:00]} 20. bxc4 {[%emt 0:12:30]} Rxc4 {[%emt 0:01:00]} 21. Qd3 {[%emt 0:00:00]} Qc7 {[%emt 0:15:30]} 22. Ne4 {[%emt 0:00:00]} Bxe4 {[%emt 0:00:30]} 23. Qxe4 {[%emt 0:00:30]} Rb8 {[%emt 0:00:30]} 24. Ra2 {[%emt 0:03:30]} Qc8 {[%emt 0:26:47]} 25. Rfa1 {[%emt 0:05:40]} Rb6 {[%emt 0:01:43]} 26. Qe7 {[%emt 0:10:53]} Rcxb4 {[%emt 0:04:56]} 27. Qa7 {[%emt 0:04:05]} Bf4 {[%emt 0:00:52]} 28. Re2 {[%emt 0:02:31]} Bb8 {[%emt 0:05:03]} 29. Qe7 {[%emt 0:00:09]} Rb1+ {[%emt 0:00:22]} 30. Re1 {[%emt 0:00:33]} Rxa1 {[%emt 0:02:29]} 31. Rxa1 {[%emt 0:00:01]} Bd6 {[%emt 0:00:02]} 32. Qe2 {[%emt 0:00:22]} Kg7 {[%emt 0:00:17]} 33. h4 {[%emt 0:01:31]} h5 {[%emt 0:00:12]} 34. g3 {[%emt 0:00:04]} Qa8 {[%emt 0:01:04]} 35. Nd2 {[%emt 0:01:29]} Qb7 {[%emt 0:03:53]} 36. Qd3 {[%emt 0:00:12]} Bc7 {[%emt 0:00:34]} 37. Ne4 {[%emt 0:02:03]} Rb3 {[%emt 0:00:52]} 38. Qd1 {[%emt 0:00:01]} Qd5 {[%emt 0:00:52]} 39. Rxa6 {[%emt 0:00:51]} Rb4 {[%emt 0:00:25]} 40. Nxf6 {[%emt 0:00:37]} Qb5 {[%emt 0:00:32]} 41. Kh2 {[%emt 0:00:57]} Qxa6 {[%emt 0:00:22]} 42. Ne8+ {[%emt 0:00:01]} Kf8 {[%emt 0:00:20]} 43. Nxc7 {[%emt 0:00:02]} Qc6 {[%emt 0:00:14]} 44. Qd2 {[%emt 0:01:23]} Rb1 {[%emt 0:00:06]} 45. d5 {[%emt 0:00:34]} Qxc7 {[%emt 0:00:39]} 46. Qd4 {[%emt 0:00:26]} Qb6 {[%emt 0:00:42]} 47. Qh8+ {[%emt 0:00:34]} Ke7 {[%emt 0:00:00]} 48. Qe5+ {[%emt 0:00:05]} Kd7 {[%emt 0:00:14]} 49. Kg2 {[%emt 0:00:03]} Qd6 {[%emt 0:00:44]} 50. Qd4 {[%emt 0:00:01]} Rb8 {[%emt 0:00:48]} 0-1

[Event "16th Spilimbergo Open 2018"]
[Site "Spilimbergo"]
[Date "2018.08.12"]
[Round "4.16"]
[White "Seresin, Francesco"]
[Black "Damia, Angelo"]
[Result "1/2-1/2"]
[ECO "E10"]
[WhiteElo "2279"]
[BlackElo "2313"]
[Annotator "NA"]
[PlyCount "27"]
[EventDate "2018.08.10"]
[EventType "swiss"]
[EventCountry "ITA"]
[SourceTitle "playchess.com"]
[Source "ChessBase"]
[SourceQuality "1"]
[TimeControl "5400+30"]

1. d4 {[%emt 0:00:30]} Nf6 {[%emt 0:01:30]} 2. c4 {[%emt 0:00:30]} e6 {[%emt 0:00:00]} 3. Nc3 {[%emt 0:00:30]} a6 {[%emt 0:02:00]} 4. Nf3 {[%emt 0:02:30]} c5 {[%emt 0:00:30]} 5. Bg5 {[%emt 0:08:30]} cxd4 {[%emt 0:00:30]} 6. Qxd4 {[%emt 0:03:30]} Nc6 {[%emt 0:00:30]} 7. Qd2 {[%emt 0:03:30]} Bb4 {[%emt 0:03:30]} 8. a3 {[%emt 0:01:30]} Ne4 {[%emt 0:07:30]} 9. Bxd8 {[%emt 0:04:30]} Nxd2 {[%emt 0:03:30]} 10. Kxd2 {[%emt 0:01:30]} Bxc3+ {[%emt 0:00:30]} 11. Kxc3 {[%emt 0:00:30]} Nxd8 {[%emt 0:01:30]} 12. e3 {[%emt 0:07:30]} b6 {[%emt 0:01:30]} 13. Be2 {[%emt 0:02:30]} Bb7 {[%emt 0:00:30]} 14. Rac1 {[%emt 0:01:30]} 1/2-1/2

[Event "16th Spilimbergo Open 2018"]
[Site "Spilimbergo"]
[Date "2018.08.14"]
[Round "7.12"]
[White "Altini, Nicola"]
[Black "Akshay, Krishna R"]
[Result "0-1"]
[ECO "A55"]
[WhiteElo "2425"]
[BlackElo "1445"]
[Annotator "ChessBase"]
[PlyCount "104"]
[EventDate "2018.08.10"]
[EventType "swiss"]
[EventCountry "ITA"]
[SourceTitle "playchess.com"]
[Source "ChessBase"]
[SourceQuality "1"]
[TimeControl "5400+30"]

1. d4 {[%emt 0:00:30]} Nf6 {[%emt 0:00:30]} 2. c4 {[%emt 0:00:00]} d6 {[%emt 0:00:00]} 3. Nf3 {[%emt 0:00:00]} Nbd7 {[%emt 0:00:00]} 4. Nc3 {[%emt 0:00:30]} e5 {[%emt 0:00:00]} 5. e4 {[%emt 0:00:30]} Be7 {[%emt 0:00:00]} 6. Be2 {[%emt 0:00:30]} O-O {[%emt 0:00:30]} 7. O-O {[%emt 0:00:30]} c6 {[%emt 0:00:00]} 8. d5 {[%emt 0:11:30]} c5 {[%emt 0:00:00]} 9. Ne1 {[%emt 0:00:30]} a6 {[%emt 0:02:30]} 10. a4 {[%emt 0:01:30]} Ne8 {[%emt 0:01:30]} 11. a5 {[%emt 0:01:30]} g6 {[%emt 0:00:30]} 12. Nd3 {[%emt 0:07:30]} f5 {[%emt 0:02:30]} 13. f4 {[%emt 0:04:30]} Ng7 {[%emt 0:03:30]} 14. fxe5 {[%emt 0:05:30]} dxe5 {[%emt 0:00:30]} 15. exf5 {[%emt 0:05:30]} gxf5 {[%emt 0:00:30]} 16. g4 {[%emt 0:06:30]} e4 {[%emt 0:03:30]} 17. Nf4 {[%emt 0:05:30]} Ne5 {[%emt 0:00:30]} 18. d6 {[%emt 0:15:30]} Bxd6 {[%emt 0:14:30]} 19. Qd5+ {[%emt 0:03:30]} Kh8 {[%emt 0:00:00]} 20. gxf5 {[%emt 0:04:30]} Bxf5 {[%emt 0:11:00]} 21. Nxe4 {[%emt 0:01:30]} Bc7 {[%emt 0:02:30]} 22. Qxd8 {[%emt 0:01:30]} Raxd8 {[%emt 0:01:30]} 23. Nxc5 {[%emt 0:04:11]} Rg8 {[%emt 0:00:30]} 24. Kf2 {[%emt 0:00:52]} Ng4+ {[%emt 0:02:30]} 25. Bxg4 {[%emt 0:00:34]} Bxg4 {[%emt 0:00:30]} 26. h3 {[%emt 0:08:50]} Bc8 {[%emt 0:01:30]} 27. Ra3 {[%emt 0:03:09]} Rd4 {[%emt 0:03:30]} 28. Ncd3 {[%emt 0:01:58]} Rxc4 {[%emt 0:01:30]} 29. Bd2 {[%emt 0:00:26]} Rf8 {[%emt 0:02:30]} 30. Ke1 {[%emt 0:01:38]} Kg8 {[%emt 0:04:30]} 31. Rg1 {[%emt 0:04:00]} Bxf4 {[%emt 0:06:30]} 32. Nxf4 {[%emt 0:00:03]} Rcxf4 {[%emt 0:00:30]} 33. Bxf4 {[%emt 0:00:33]} Rxf4 {[%emt 0:00:30]} 34. Rc3 {[%emt 0:00:54]} Be6 {[%emt 0:00:30]} 35. Kd2 {[%emt 0:00:33]} h5 {[%emt 0:03:30]} 36. Ke3 {[%emt 0:00:40]} Rf7 {[%emt 0:00:30]} 37. Kd4 {[%emt 0:00:15]} Kh7 {[%emt 0:00:30]} 38. Ke5 {[%emt 0:00:10]} Rf5+ {[%emt 0:04:30]} 39. Kd6 {[%emt 0:00:00]} Rxa5 {[%emt 0:00:30]} 40. Rc7 {[%emt 0:01:01]} Rd5+ {[%emt 0:00:00]} 41. Ke7 {[%emt 0:00:01]} Bxh3 {[%emt 0:00:00]} 42. Rxb7 {[%emt 0:00:51]} Bg4 {[%emt 0:03:30]} 43. Ra7 {[%emt 0:00:11]} a5 {[%emt 0:05:30]} 44. b3 {[%emt 0:01:20]} Kh6 {[%emt 0:00:30]} 45. Ra1 {[%emt 0:00:24]} h4 {[%emt 0:01:30]} 46. R7xa5 {[%emt 0:00:52]} Rxa5 {[%emt 0:00:30]} 47. Rxa5 {[%emt 0:00:00]} h3 {[%emt 0:00:30]} 48. Ra2 {[%emt 0:00:28]} Nf5+ {[%emt 0:04:00]} 49. Kf6 {[%emt 0:00:01]} Nd4 {[%emt 0:02:26]} 50. Ke5 {[%emt 0:01:34]} Ne2 {[%emt 0:00:39]} 51. Ra1 {[%emt 0:00:23]} Bf3 {[%emt 0:00:27]} 52. Rf1 {[%emt 0:00:36]} h2 {[%emt 0:00:46]} 0-1